[Event "*** Qualifier 3: Titled Tuesday 3|2 Blitz"]
[Site "Chess.com"]
[Date "2017.04.18"]
[Round "2"]
[White "Alexander_Moskalenko"]
[Black "Elshan1985"]
[Result "1-0"]
[WhiteElo "2661"]
[BlackElo "2504"]
[TimeControl "180+2"]
[EndTime "13:25:43 PDT"]
[Termination "Alexander_Moskalenko won by resignation"]

1. c4 {[%clk 0:03:02]} 1... e6 {[%clk 0:03:00.3]} 2. Nf3 {[%clk 0:03:02.1]} 2...
d5 {[%clk 0:03:01.7]} 3. d4 {[%clk 0:03:02.2]} 3... Nf6 {[%clk 0:03:01.2]} 4. g3
{[%clk 0:03:03.6]} 4... dxc4 {[%clk 0:02:59.5]} 5. Bg2 {[%clk 0:03:04.6]} 5...
a6 {[%clk 0:03:01.1]} 6. O-O {[%clk 0:02:51.9]} 6... Nc6 {[%clk 0:03:01]} 7. e3
{[%clk 0:02:52.1]} 7... Bd6 {[%clk 0:02:53.9]} 8. Nfd2 {[%clk 0:02:51.5]} 8...
Bd7 {[%clk 0:02:46.7]} 9. Nxc4 {[%clk 0:02:52.4]} 9... O-O {[%clk 0:02:48.4]}
10. Nc3 {[%clk 0:02:36.2]} 10... b5 {[%clk 0:02:48.4]} 11. Nxd6 {[%clk
0:02:37.2]} 11... cxd6 {[%clk 0:02:49.2]} 12. d5 {[%clk 0:02:39.1]} 12... exd5
{[%clk 0:02:47.4]} 13. Nxd5 {[%clk 0:02:41]} 13... Rc8 {[%clk 0:02:48.1]} 14. b3
{[%clk 0:02:30]} 14... Nxd5 {[%clk 0:02:35.7]} 15. Qxd5 {[%clk 0:02:31.9]} 15...
Be6 {[%clk 0:02:32.8]} 16. Qd2 {[%clk 0:02:31.4]} 16... Qd7 {[%clk 0:02:22.6]}
17. Bb2 {[%clk 0:02:03.4]} 17... Bh3 {[%clk 0:02:20]} 18. Bxh3 {[%clk
0:02:04.2]} 18... Qxh3 {[%clk 0:02:20.4]} 19. Qxd6 {[%clk 0:02:05.7]} 19... Rfd8
{[%clk 0:02:22.1]} 20. Qf4 {[%clk 0:02:00.7]} 20... Rd5 {[%clk 0:02:17.1]} 21.
Qf3 {[%clk 0:01:53.7]} 21... Rh5 {[%clk 0:02:06.6]} 22. Qg2 {[%clk 0:01:54.5]}
22... Qd7 {[%clk 0:02:07.1]} 23. Rfd1 {[%clk 0:01:54.5]} 23... Qe8 {[%clk
0:02:08.1]} 24. Rac1 {[%clk 0:01:54.6]} 24... Rh6 {[%clk 0:02:06.8]} 25. Rc5
{[%clk 0:01:43.5]} 25... Re6 {[%clk 0:01:56.8]} 26. Rdc1 {[%clk 0:01:39.8]}
26... h6 {[%clk 0:01:55.9]} 27. Qf3 {[%clk 0:01:35.4]} 27... Qd7 {[%clk
0:01:51.7]} 28. Qg4 {[%clk 0:01:34.5]} 28... g6 {[%clk 0:01:48.6]} 29. Qf4
{[%clk 0:01:18.3]} 29... g5 {[%clk 0:01:42.1]} 30. Qf3 {[%clk 0:01:13]} 30...
Rd6 {[%clk 0:01:35.2]} 31. g4 {[%clk 0:01:07.4]} 31... Qe6 {[%clk 0:01:23]} 32.
h3 {[%clk 0:01:07.6]} 32... Qd7 {[%clk 0:01:24]} 33. b4 {[%clk 0:01:05.9]} 33...
Qe6 {[%clk 0:01:23.8]} 34. a3 {[%clk 0:01:06.5]} 34... Qd7 {[%clk 0:01:21.6]}
35. Kg2 {[%clk 0:01:07.7]} 35... Qe6 {[%clk 0:01:22.5]} 36. R1c2 {[%clk
0:01:09.2]} 36... Qd7 {[%clk 0:01:22.9]} 37. Qe4 {[%clk 0:01:08.8]} 37... Re6
{[%clk 0:01:23.2]} 38. Qf5 {[%clk 0:01:09.9]} 38... Ne7 {[%clk 0:01:19.6]} 39.
Rxc8+ {[%clk 0:01:08.5]} 39... Nxc8 {[%clk 0:01:21.5]} 40. Qf3 {[%clk
0:01:02.3]} 40... Nd6 {[%clk 0:01:19.1]} 41. Bd4 {[%clk 0:00:56.1]} 41... Nc4
{[%clk 0:01:17.8]} 42. a4 {[%clk 0:00:57.1]} 42... Qc6 {[%clk 0:01:05.1]} 43.
axb5 {[%clk 0:00:55.2]} 43... axb5 {[%clk 0:01:05.8]} 44. Ra2 {[%clk 0:00:53.8]}
44... f6 {[%clk 0:01:04.5]} 45. Ra8+ {[%clk 0:00:52]} 45... Kg7 {[%clk
0:01:05.4]} 46. Qxc6 {[%clk 0:00:51.3]} 46... Rxc6 {[%clk 0:01:06.2]} 47. Rb8
{[%clk 0:00:52.2]} 47... Na3 {[%clk 0:01:04.9]} 48. Bc5 {[%clk 0:00:46.5]} 48...
Re6 {[%clk 0:01:05.1]} 49. Kf3 {[%clk 0:00:46.9]} 49... Kg6 {[%clk 0:01:03.8]}
50. Rg8+ {[%clk 0:00:45]} 50... Kf7 {[%clk 0:01:04.2]} 51. Ra8 {[%clk
0:00:46.9]} 51... Nc4 {[%clk 0:01:03.3]} 52. Rb8 {[%clk 0:00:47.4]} 52... Na3
{[%clk 0:01:02.7]} 53. Kg3 {[%clk 0:00:46.7]} 53... Kg6 {[%clk 0:01:03.1]} 54.
h4 {[%clk 0:00:46.6]} 54... gxh4+ {[%clk 0:00:55.6]} 55. Kxh4 {[%clk 0:00:45.7]}
55... Re4 {[%clk 0:00:56.9]} 56. f3 {[%clk 0:00:39.9]} 56... Rc4 {[%clk
0:00:56.3]} 57. Rb7 {[%clk 0:00:34.5]} 57... h5 {[%clk 0:00:54.7]} 58. e4 {[%clk
0:00:33]} 58... hxg4 {[%clk 0:00:54.7]} 59. Kxg4 {[%clk 0:00:34.9]} 59... f5+
{[%clk 0:00:55.7]} 60. Kf4 {[%clk 0:00:35.5]} 60... fxe4 {[%clk 0:00:57.3]} 61.
fxe4 {[%clk 0:00:36.7]} 61... Kf6 {[%clk 0:00:58]} 62. Rb6+ {[%clk 0:00:37.3]}
62... Kf7 {[%clk 0:00:59.3]} 63. Ke5 {[%clk 0:00:39.2]} 63... Rc2 {[%clk
0:00:55.1]} 64. Kf5 {[%clk 0:00:39.6]} 64... Rc1 {[%clk 0:00:54.6]} 65. Rb7+
{[%clk 0:00:40.8]} 65... Ke8 {[%clk 0:00:55.9]} 66. e5 {[%clk 0:00:41.8]} 66...
Nc4 {[%clk 0:00:54.5]} 67. Ke6 {[%clk 0:00:35.4]} 67... Kd8 {[%clk 0:00:53.3]}
68. Rxb5 {[%clk 0:00:35.6]} 68... Kc7 {[%clk 0:00:54.6]} 69. Bd6+ {[%clk
0:00:36.5]} 1-0

[Event "*** Qualifier 3: Titled Tuesday 3|2 Blitz"]
[Site "Chess.com"]
[Date "2017.04.18"]
[Round "2"]
[White "FearlessKing64"]
[Black "Outsmiter"]
[Result "1-0"]
[WhiteElo "2172"]
[BlackElo "2085"]
[TimeControl "180+2"]
[EndTime "13:25:58 PDT"]
[Termination "FearlessKing64 won by checkmate"]

1. e4 {[%clk 0:03:02]} 1... d6 {[%clk 0:03:01.1]} 2. d4 {[%clk 0:03:02.3]} 2...
Nf6 {[%clk 0:03:01.9]} 3. Nc3 {[%clk 0:03:01.9]} 3... g6 {[%clk 0:03:03]} 4. f4
{[%clk 0:03:03]} 4... Bg7 {[%clk 0:03:04.1]} 5. Nf3 {[%clk 0:03:04.4]} 5... O-O
{[%clk 0:03:05.1]} 6. Be2 {[%clk 0:03:05.3]} 6... c5 {[%clk 0:03:03.3]} 7. dxc5
{[%clk 0:03:06.8]} 7... Qa5 {[%clk 0:03:03.8]} 8. O-O {[%clk 0:03:08.2]} 8...
Qxc5+ {[%clk 0:03:03.3]} 9. Kh1 {[%clk 0:03:09.7]} 9... Ng4 {[%clk 0:02:58]} 10.
Qe1 {[%clk 0:03:10.1]} 10... Ne3 {[%clk 0:02:56.5]} 11. Bxe3 {[%clk 0:03:07.8]}
11... Qxe3 {[%clk 0:02:58.4]} 12. Bd3 {[%clk 0:02:38.3]} 12... Qxe1 {[%clk
0:02:49.3]} 13. Raxe1 {[%clk 0:02:40.2]} 13... Nc6 {[%clk 0:02:48.8]} 14. Nd5
{[%clk 0:02:14.5]} 14... Bxb2 {[%clk 0:02:36.3]} 15. Bb5 {[%clk 0:02:12.7]}
15... e6 {[%clk 0:02:22]} 16. Bxc6 {[%clk 0:02:12.3]} 16... bxc6 {[%clk
0:02:23.9]} 17. Ne7+ {[%clk 0:02:13.5]} 17... Kg7 {[%clk 0:02:20.8]} 18. Nxc6
{[%clk 0:02:14.7]} 18... Ba6 {[%clk 0:02:14.7]} 19. Rf2 {[%clk 0:02:07.8]} 19...
Rfc8 {[%clk 0:02:13.6]} 20. Ncd4 {[%clk 0:02:06]} 20... Rc4 {[%clk 0:01:57.4]}
21. Rd1 {[%clk 0:01:57.5]} 21... Rac8 {[%clk 0:01:52.4]} 22. h3 {[%clk 0:01:49]}
22... Bb7 {[%clk 0:01:26.9]} 23. f5 {[%clk 0:01:40.8]} 23... e5 {[%clk
0:01:23.8]} 24. f6+ {[%clk 0:01:40.5]} 24... Kg8 {[%clk 0:01:12.3]} 25. Nb3
{[%clk 0:01:32.4]} 25... Bxe4 {[%clk 0:01:09.4]} 26. Rxd6 {[%clk 0:01:33.1]}
26... Bxc2 {[%clk 0:01:06.9]} 27. Rfd2 {[%clk 0:01:20.4]} 27... h6 {[%clk
0:01:07]} 28. Na5 {[%clk 0:01:13.6]} 28... R4c7 {[%clk 0:00:59.2]} 29. Rd8+
{[%clk 0:00:53.7]} 29... Rxd8 {[%clk 0:00:58.9]} 30. Rxd8+ {[%clk 0:00:55.6]}
30... Kh7 {[%clk 0:00:59.9]} 31. Re8 {[%clk 0:00:55.7]} 31... e4 {[%clk
0:00:41.5]} 32. Ne1 {[%clk 0:00:43.6]} 32... Bxf6 {[%clk 0:00:34.1]} 33. Nxc2
{[%clk 0:00:40.6]} 33... Rxc2 {[%clk 0:00:36]} 34. Rxe4 {[%clk 0:00:42.2]} 34...
Rxa2 {[%clk 0:00:36.6]} 35. Nc6 {[%clk 0:00:42.6]} 35... Kg7 {[%clk 0:00:34.6]}
36. Rb4 {[%clk 0:00:37.7]} 36... Ra6 {[%clk 0:00:29.9]} 37. Rc4 {[%clk
0:00:29.5]} 37... h5 {[%clk 0:00:26.9]} 38. Kg1 {[%clk 0:00:24.5]} 38... Ra2
{[%clk 0:00:24.7]} 39. Nb8 {[%clk 0:00:21.1]} 39... Ra1+ {[%clk 0:00:22.7]} 40.
Kf2 {[%clk 0:00:21.4]} 40... Ra2+ {[%clk 0:00:20.7]} 41. Kf3 {[%clk 0:00:22.1]}
41... h4 {[%clk 0:00:21]} 42. Nd7 {[%clk 0:00:21.2]} 42... Be7 {[%clk
0:00:20.8]} 43. Rc7 {[%clk 0:00:20.9]} 43... Ra3+ {[%clk 0:00:21.3]} 44. Ke4
{[%clk 0:00:21.7]} 44... Rg3 {[%clk 0:00:20.3]} 45. Ne5 {[%clk 0:00:22.4]} 45...
Kf6 {[%clk 0:00:18.8]} 46. Ng4+ {[%clk 0:00:21.7]} 46... Ke6 {[%clk 0:00:17.9]}
47. Rxa7 {[%clk 0:00:22.4]} 47... Rxg2 {[%clk 0:00:17.9]} 48. Ra6+ {[%clk
0:00:23.4]} 48... Kd7 {[%clk 0:00:17.7]} 49. Ra7+ {[%clk 0:00:24]} 49... Kd8
{[%clk 0:00:16.6]} 50. Ne5 {[%clk 0:00:24.1]} 50... Re2+ {[%clk 0:00:15.1]} 51.
Kd5 {[%clk 0:00:25.2]} 51... Rd2+ {[%clk 0:00:12.5]} 52. Ke4 {[%clk 0:00:26.3]}
52... f5+ {[%clk 0:00:12.9]} 53. Ke3 {[%clk 0:00:25.2]} 53... Bg5+ {[%clk
0:00:13]} 54. Kf3 {[%clk 0:00:23.9]} 54... Rb2 {[%clk 0:00:12.1]} 55. Nf7+
{[%clk 0:00:24.5]} 55... Ke8 {[%clk 0:00:11.2]} 56. Nxg5 {[%clk 0:00:26.4]}
56... Rb3+ {[%clk 0:00:10.7]} 57. Kf4 {[%clk 0:00:27.8]} 57... Rb4+ {[%clk
0:00:10.4]} 58. Ke5 {[%clk 0:00:29]} 58... Rb1 {[%clk 0:00:09.7]} 59. Kf6 {[%clk
0:00:30]} 59... Rb6+ {[%clk 0:00:09.9]} 60. Ne6 {[%clk 0:00:28.4]} 60... f4
{[%clk 0:00:09.8]} 61. Re7# {[%clk 0:00:29.1]} 1-0

[Event "*** Qualifier 3: Titled Tuesday 3|2 Blitz"]
[Site "Chess.com"]
[Date "2017.04.18"]
[Round "2"]
[White "mwpchess"]
[Black "Malev212"]
[Result "0-1"]
[WhiteElo "2390"]
[BlackElo "2427"]
[TimeControl "180+2"]
[EndTime "13:26:03 PDT"]
[Termination "Malev212 won by resignation"]

1. c4 {[%clk 0:03:02]} 1... e6 {[%clk 0:02:57.8]} 2. g3 {[%clk 0:03:02.5]} 2...
d5 {[%clk 0:02:58.3]} 3. Nf3 {[%clk 0:03:02.4]} 3... dxc4 {[%clk 0:02:58.2]} 4.
Qa4+ {[%clk 0:02:53.9]} 4... Nd7 {[%clk 0:02:58.6]} 5. Qxc4 {[%clk 0:02:54.3]}
5... c5 {[%clk 0:02:58.5]} 6. Qb3 {[%clk 0:02:54.9]} 6... b6 {[%clk 0:02:57.5]}
7. Bg2 {[%clk 0:02:54.9]} 7... Bb7 {[%clk 0:02:58.4]} 8. O-O {[%clk 0:02:55.2]}
8... Ngf6 {[%clk 0:02:59.8]} 9. a4 {[%clk 0:02:53.3]} 9... a6 {[%clk 0:02:58.1]}
10. Nc3 {[%clk 0:02:52]} 10... Be7 {[%clk 0:02:58.3]} 11. d3 {[%clk 0:02:50.7]}
11... O-O {[%clk 0:02:58.4]} 12. Rd1 {[%clk 0:02:45.1]} 12... Rc8 {[%clk
0:02:46.9]} 13. Bf4 {[%clk 0:02:39.3]} 13... Nd5 {[%clk 0:02:43.1]} 14. Bd2
{[%clk 0:02:36.2]} 14... Qc7 {[%clk 0:02:35.7]} 15. Rac1 {[%clk 0:02:35.3]}
15... Qb8 {[%clk 0:02:36]} 16. Bg5 {[%clk 0:02:23.9]} 16... Nxc3 {[%clk
0:01:30.1]} 17. Qxc3 {[%clk 0:01:45.4]} 17... Bxg5 {[%clk 0:01:23.3]} 18. Nxg5
{[%clk 0:01:43.9]} 18... Bxg2 {[%clk 0:01:24.4]} 19. Kxg2 {[%clk 0:01:44.4]}
19... e5 {[%clk 0:01:15.5]} 20. Qc4 {[%clk 0:01:40.1]} 20... a5 {[%clk
0:01:11.5]} 21. Qh4 {[%clk 0:01:26.9]} 21... h6 {[%clk 0:01:08.9]} 22. Nf3
{[%clk 0:01:23.5]} 22... Qd6 {[%clk 0:01:04.4]} 23. Rc4 {[%clk 0:01:21.1]} 23...
f5 {[%clk 0:01:03.8]} 24. g4 {[%clk 0:01:11.7]} 24... e4 {[%clk 0:01:00.6]} 25.
Ng1 {[%clk 0:01:00.4]} 25... Ne5 {[%clk 0:00:58.7]} 26. Rcc1 {[%clk 0:00:59.4]}
26... exd3 {[%clk 0:00:54]} 27. exd3 {[%clk 0:00:59.2]} 27... fxg4 {[%clk
0:00:51.1]} 28. Qg3 {[%clk 0:00:57.2]} 28... Qf6 {[%clk 0:00:47.9]} 29. Re1
{[%clk 0:00:49.1]} 29... Ng6 {[%clk 0:00:44.6]} 30. Qxg4 {[%clk 0:00:43.3]}
30... Nf4+ {[%clk 0:00:42.4]} 31. Kh1 {[%clk 0:00:42.9]} 31... Rcd8 {[%clk
0:00:39.6]} 32. Nh3 {[%clk 0:00:30]} 32... Nxd3 {[%clk 0:00:38]} 33. Re6 {[%clk
0:00:30]} 33... Qxf2 {[%clk 0:00:31.2]} 34. Rg1 {[%clk 0:00:23.3]} 34... Qf3+
{[%clk 0:00:30.5]} 35. Qxf3 {[%clk 0:00:23.8]} 35... Rxf3 {[%clk 0:00:30.9]} 36.
Re7 {[%clk 0:00:23.3]} 36... Rf7 {[%clk 0:00:29.1]} 37. Rxf7 {[%clk 0:00:20.6]}
37... Kxf7 {[%clk 0:00:28.9]} 38. Rg2 {[%clk 0:00:21.4]} 38... c4 {[%clk
0:00:27]} 39. Kg1 {[%clk 0:00:20.1]} 39... g5 {[%clk 0:00:26.5]} 40. Rc2 {[%clk
0:00:19.7]} 40... Rd4 {[%clk 0:00:25.7]} 41. Kf1 {[%clk 0:00:18.8]} 41... Kg6
{[%clk 0:00:23.5]} 42. Re2 {[%clk 0:00:15.1]} 42... Nc5 {[%clk 0:00:23.1]} 43.
Nf2 {[%clk 0:00:14]} 43... h5 {[%clk 0:00:20.4]} 44. Kg2 {[%clk 0:00:11.7]}
44... Nxa4 {[%clk 0:00:19]} 45. h3 {[%clk 0:00:11.8]} 45... Nc5 {[%clk
0:00:18.7]} 46. Kf3 {[%clk 0:00:12]} 46... Nd3 {[%clk 0:00:18.7]} 47. Nh1 {[%clk
0:00:10.2]} 47... h4 {[%clk 0:00:16.6]} 48. Ke3 {[%clk 0:00:10]} 48... Rd6
{[%clk 0:00:16.4]} 49. Rg2 {[%clk 0:00:09.5]} 49... Nf4 {[%clk 0:00:16.5]} 50.
Rh2 {[%clk 0:00:10.5]} 50... Nxh3 {[%clk 0:00:16]} 51. Nf2 {[%clk 0:00:10.2]}
51... Nxf2 {[%clk 0:00:16.1]} 52. Rxf2 {[%clk 0:00:11]} 52... Kh5 {[%clk
0:00:16.3]} 53. Ke4 {[%clk 0:00:11.2]} 53... Rd1 {[%clk 0:00:16.5]} 54. Rf6
{[%clk 0:00:11]} 54... h3 {[%clk 0:00:16.8]} 55. Rf8 {[%clk 0:00:05.4]} 55...
Kg4 {[%clk 0:00:16.9]} 56. Rh8 {[%clk 0:00:05.6]} 56... Kg3 {[%clk 0:00:16.9]}
57. Kf5 {[%clk 0:00:04.6]} 57... g4 {[%clk 0:00:17.4]} 58. Rg8 {[%clk
0:00:06.5]} 58... Rf1+ {[%clk 0:00:18.3]} 59. Ke4 {[%clk 0:00:06.5]} 59... h2
{[%clk 0:00:19]} 0-1

[Event "*** Qualifier 3: Titled Tuesday 3|2 Blitz"]
[Site "Chess.com"]
[Date "2017.04.18"]
[Round "2"]
[White "ShimanovAlex"]
[Black "johnathan113"]
[Result "0-1"]
[WhiteElo "2583"]
[BlackElo "2460"]
[TimeControl "180+2"]
[EndTime "13:26:18 PDT"]
[Termination "johnathan113 won by resignation"]

1. d4 {[%clk 0:02:58.9]} 1... Nf6 {[%clk 0:03:00.8]} 2. Bf4 {[%clk 0:02:58.1]}
2... g6 {[%clk 0:03:01.4]} 3. Nc3 {[%clk 0:02:58.3]} 3... Bg7 {[%clk 0:03:00.2]}
4. e4 {[%clk 0:02:58.8]} 4... d5 {[%clk 0:03:01.3]} 5. e5 {[%clk 0:02:53.2]}
5... Ne4 {[%clk 0:03:02]} 6. Bd3 {[%clk 0:02:53.9]} 6... Nxc3 {[%clk 0:03:01.3]}
7. bxc3 {[%clk 0:02:55.8]} 7... c5 {[%clk 0:03:02.9]} 8. h3 {[%clk 0:02:55.4]}
8... Nc6 {[%clk 0:03:03.5]} 9. Nf3 {[%clk 0:02:56.2]} 9... Qa5 {[%clk
0:03:03.4]} 10. Qd2 {[%clk 0:02:56.9]} 10... c4 {[%clk 0:03:03.1]} 11. Be2
{[%clk 0:02:57.5]} 11... Bf5 {[%clk 0:03:02.8]} 12. O-O {[%clk 0:02:58.1]} 12...
Qa4 {[%clk 0:03:02.5]} 13. Bd1 {[%clk 0:02:50.9]} 13... h6 {[%clk 0:03:02.1]}
14. Re1 {[%clk 0:02:46.8]} 14... O-O-O {[%clk 0:03:00.2]} 15. Nh2 {[%clk
0:02:42.1]} 15... Bd7 {[%clk 0:02:21.7]} 16. Nf1 {[%clk 0:02:41.3]} 16... e6
{[%clk 0:02:20.4]} 17. Bh2 {[%clk 0:02:34]} 17... h5 {[%clk 0:02:09]} 18. Bf4
{[%clk 0:02:34.1]} 18... f6 {[%clk 0:02:04.2]} 19. exf6 {[%clk 0:02:33.2]} 19...
Bxf6 {[%clk 0:02:06.1]} 20. Nh2 {[%clk 0:02:33.5]} 20... Qa3 {[%clk 0:02:01.7]}
21. Nf3 {[%clk 0:02:31.2]} 21... Rhg8 {[%clk 0:02:01.7]} 22. h4 {[%clk
0:02:30.9]} 22... Ne7 {[%clk 0:02:00]} 23. g3 {[%clk 0:02:28.5]} 23... Nf5
{[%clk 0:01:54.6]} 24. Bg5 {[%clk 0:02:24.4]} 24... Qe7 {[%clk 0:01:36.1]} 25.
a4 {[%clk 0:02:19.2]} 25... Nd6 {[%clk 0:01:34.8]} 26. Bxf6 {[%clk 0:02:19]}
26... Qxf6 {[%clk 0:01:35.6]} 27. Ng5 {[%clk 0:02:20.7]} 27... Nf7 {[%clk
0:01:29.2]} 28. a5 {[%clk 0:01:53.1]} 28... Nxg5 {[%clk 0:01:26.8]} 29. Qxg5
{[%clk 0:01:53.8]} 29... Rgf8 {[%clk 0:01:04.4]} 30. Qxf6 {[%clk 0:01:54.2]}
30... Rxf6 {[%clk 0:01:06.3]} 31. f4 {[%clk 0:01:55.5]} 31... Kc7 {[%clk
0:01:04.9]} 32. Bf3 {[%clk 0:01:55.3]} 32... Rdf8 {[%clk 0:00:58.1]} 33. Re5
{[%clk 0:01:55.5]} 33... Rf5 {[%clk 0:00:57.8]} 34. Kf2 {[%clk 0:01:45.8]} 34...
Bc8 {[%clk 0:00:50.3]} 35. Ke3 {[%clk 0:01:44.9]} 35... Kd6 {[%clk 0:00:42]} 36.
Bg2 {[%clk 0:01:44.9]} 36... Rxe5+ {[%clk 0:00:41.4]} 37. fxe5+ {[%clk
0:01:34.4]} 37... Kc6 {[%clk 0:00:41]} 38. Rb1 {[%clk 0:01:35.9]} 38... Bd7
{[%clk 0:00:38.4]} 39. Bf3 {[%clk 0:01:36.1]} 39... Kc7 {[%clk 0:00:31.3]} 40.
Be2 {[%clk 0:01:36.3]} 40... Bc6 {[%clk 0:00:27.1]} 41. Rg1 {[%clk 0:01:35.9]}
41... Ba4 {[%clk 0:00:24.9]} 42. Kd2 {[%clk 0:01:31.7]} 42... Rf2 {[%clk
0:00:24.2]} 43. Ke3 {[%clk 0:01:28]} 43... Rh2 {[%clk 0:00:24]} 44. Rc1 {[%clk
0:01:26.1]} 44... Kc6 {[%clk 0:00:23.4]} 45. Kf3 {[%clk 0:00:54.4]} 45... Kb5
{[%clk 0:00:23.3]} 46. Rb1+ {[%clk 0:00:55.2]} 46... Kxa5 {[%clk 0:00:24]} 47.
Rxb7 {[%clk 0:00:56]} 47... Bxc2 {[%clk 0:00:21.6]} 48. Rxa7+ {[%clk 0:00:56.4]}
48... Kb5 {[%clk 0:00:20.9]} 49. Ra2 {[%clk 0:00:50.5]} 49... Bd3 {[%clk
0:00:14.1]} 50. Bxd3 {[%clk 0:00:43.8]} 50... Rxa2 {[%clk 0:00:14.1]} 51. Bxg6
{[%clk 0:00:45.7]} 51... Ra3 {[%clk 0:00:11.2]} 52. Bxh5 {[%clk 0:00:39.8]}
52... Rxc3+ {[%clk 0:00:13.1]} 53. Kf4 {[%clk 0:00:41.4]} 53... Rd3 {[%clk
0:00:12.4]} 54. Bg6 {[%clk 0:00:42.2]} 54... Rxd4+ {[%clk 0:00:13]} 55. Kg5
{[%clk 0:00:42]} 55... c3 {[%clk 0:00:13.9]} 56. h5 {[%clk 0:00:43]} 56... Re4
{[%clk 0:00:08]} 57. Be8+ {[%clk 0:00:17.2]} 57... Kb4 {[%clk 0:00:08.5]} 58. h6
{[%clk 0:00:16.4]} 58... c2 {[%clk 0:00:09.5]} 59. h7 {[%clk 0:00:17.7]} 59...
c1=Q+ {[%clk 0:00:10.7]} 60. Kg6 {[%clk 0:00:19]} 60... Rg4+ {[%clk 0:00:09.5]}
61. Kf7 {[%clk 0:00:19.9]} 61... Qh6 {[%clk 0:00:09.1]} 0-1

[Event "*** Qualifier 3: Titled Tuesday 3|2 Blitz"]
[Site "Chess.com"]
[Date "2017.04.18"]
[Round "2"]
[White "OparinGrigoriy"]
[Black "GMHess"]
[Result "1/2-1/2"]
[WhiteElo "2634"]
[BlackElo "2522"]
[TimeControl "180+2"]
[EndTime "13:26:19 PDT"]
[Termination "Game drawn - insufficient material"]

1. e4 {[%clk 0:03:02]} 1... e5 {[%clk 0:03:00.7]} 2. Nf3 {[%clk 0:03:02.6]} 2...
Nc6 {[%clk 0:03:02.3]} 3. Bc4 {[%clk 0:03:04.3]} 3... Bc5 {[%clk 0:03:02.8]} 4.
c3 {[%clk 0:03:05.5]} 4... Nf6 {[%clk 0:03:04.1]} 5. d3 {[%clk 0:03:06.7]} 5...
a6 {[%clk 0:03:03.6]} 6. a4 {[%clk 0:03:06.5]} 6... Ba7 {[%clk 0:03:01.6]} 7.
Nbd2 {[%clk 0:03:07.6]} 7... O-O {[%clk 0:02:58.4]} 8. O-O {[%clk 0:03:07.7]}
8... d6 {[%clk 0:02:53.6]} 9. h3 {[%clk 0:03:03.5]} 9... Kh8 {[%clk 0:02:29.4]}
10. Re1 {[%clk 0:02:53]} 10... Be6 {[%clk 0:02:17.4]} 11. Bxe6 {[%clk
0:02:52.8]} 11... fxe6 {[%clk 0:02:19.3]} 12. Nc4 {[%clk 0:02:52.6]} 12... Nh5
{[%clk 0:02:09]} 13. Be3 {[%clk 0:02:51.7]} 13... Nf4 {[%clk 0:02:05.5]} 14.
Bxa7 {[%clk 0:02:46.2]} 14... Rxa7 {[%clk 0:02:04.2]} 15. Kh2 {[%clk 0:02:46.1]}
15... Qf6 {[%clk 0:01:58.3]} 16. Rf1 {[%clk 0:02:45.6]} 16... Nxh3 {[%clk
0:01:36]} 17. Kxh3 {[%clk 0:02:39]} 17... Qh6+ {[%clk 0:01:36.8]} 18. Kg3 {[%clk
0:02:24.7]} 18... Qf4+ {[%clk 0:01:37.7]} 19. Kh3 {[%clk 0:02:25.9]} 19... Qh6+
{[%clk 0:01:35.4]} 20. Kg3 {[%clk 0:02:26.3]} 20... Rf6 {[%clk 0:01:23.4]} 21.
Nh4 {[%clk 0:02:10.3]} 21... g5 {[%clk 0:01:18.1]} 22. Rh1 {[%clk 0:01:56.6]}
22... gxh4+ {[%clk 0:01:13.8]} 23. Rxh4 {[%clk 0:01:58.5]} 23... Qg7+ {[%clk
0:00:47.6]} 24. Rg4 {[%clk 0:01:57.9]} 24... Qf7 {[%clk 0:00:45.7]} 25. Qe2
{[%clk 0:01:56.8]} 25... Ra8 {[%clk 0:00:46.4]} 26. Rh1 {[%clk 0:01:56.2]} 26...
Rg8 {[%clk 0:00:44.7]} 27. Rxg8+ {[%clk 0:01:56.7]} 27... Qxg8+ {[%clk 0:00:45]}
28. Kh2 {[%clk 0:01:58.2]} 28... Qg5 {[%clk 0:00:37.8]} 29. Ne3 {[%clk
0:01:58.1]} 29... Ne7 {[%clk 0:00:27.7]} 30. Qg4 {[%clk 0:01:49.1]} 30... Qf4+
{[%clk 0:00:16.7]} 31. Qxf4 {[%clk 0:01:50]} 31... exf4 {[%clk 0:00:18.6]} 32.
Ng4 {[%clk 0:01:51.2]} 32... Rg6 {[%clk 0:00:20.2]} 33. f3 {[%clk 0:01:52.4]}
33... Nc6 {[%clk 0:00:17.5]} 34. d4 {[%clk 0:01:53.8]} 34... e5 {[%clk
0:00:18.8]} 35. Rd1 {[%clk 0:01:50.8]} 35... h5 {[%clk 0:00:18.1]} 36. Nf2
{[%clk 0:01:51.9]} 36... Kg7 {[%clk 0:00:16.8]} 37. Nd3 {[%clk 0:01:50.8]} 37...
Kf6 {[%clk 0:00:17.6]} 38. b4 {[%clk 0:01:48.2]} 38... Rg7 {[%clk 0:00:17]} 39.
b5 {[%clk 0:01:46.2]} 39... axb5 {[%clk 0:00:18.9]} 40. axb5 {[%clk 0:01:48.1]}
40... Na5 {[%clk 0:00:19.5]} 41. Nb4 {[%clk 0:01:42.5]} 41... Nc4 {[%clk
0:00:18]} 42. dxe5+ {[%clk 0:01:38.4]} 42... dxe5 {[%clk 0:00:19.9]} 43. Rd8
{[%clk 0:01:38.5]} 43... Ne3 {[%clk 0:00:18.4]} 44. Nd5+ {[%clk 0:01:39.2]}
44... Nxd5 {[%clk 0:00:17.7]} 45. Rxd5 {[%clk 0:01:40.4]} 45... Ke6 {[%clk
0:00:18.3]} 46. c4 {[%clk 0:01:39]} 46... c6 {[%clk 0:00:17.9]} 47. Rd8 {[%clk
0:01:33.3]} 47... cxb5 {[%clk 0:00:18.6]} 48. cxb5 {[%clk 0:01:35.2]} 48... Rc7
{[%clk 0:00:17.9]} 49. Rh8 {[%clk 0:01:35.7]} 49... Rc5 {[%clk 0:00:16.2]} 50.
b6 {[%clk 0:01:36.7]} 50... Rc6 {[%clk 0:00:14]} 51. Rxh5 {[%clk 0:01:37.6]}
51... Kd6 {[%clk 0:00:15.3]} 52. Rh6+ {[%clk 0:01:25.2]} 52... Kc5 {[%clk
0:00:16.2]} 53. Rh5 {[%clk 0:01:13]} 53... Kd4 {[%clk 0:00:16.3]} 54. g3 {[%clk
0:01:14]} 54... Rxb6 {[%clk 0:00:08.2]} 55. gxf4 {[%clk 0:01:09.6]} 55... exf4
{[%clk 0:00:10.1]} 56. Ra5 {[%clk 0:01:05.4]} 56... Ke3 {[%clk 0:00:10.5]} 57.
Ra3+ {[%clk 0:01:06.3]} 57... Kf2 {[%clk 0:00:11.8]} 58. Kh3 {[%clk 0:01:07.8]}
58... Rg6 {[%clk 0:00:13]} 59. e5 {[%clk 0:01:09.1]} 59... b5 {[%clk 0:00:11.2]}
60. Rb3 {[%clk 0:01:06.2]} 60... b4 {[%clk 0:00:09.4]} 61. Kh4 {[%clk
0:01:05.5]} 61... Ke2 {[%clk 0:00:07.2]} 62. Kh5 {[%clk 0:01:02.7]} 62... Re6
{[%clk 0:00:07.2]} 63. Kg4 {[%clk 0:01:01.5]} 63... Rxe5 {[%clk 0:00:07.2]} 64.
Rxb4 {[%clk 0:01:02.9]} 64... Re8 {[%clk 0:00:05.4]} 65. Rxf4 {[%clk 0:00:58.7]}
65... Rg8+ {[%clk 0:00:06.1]} 66. Kh3 {[%clk 0:00:59.6]} 66... Ke3 {[%clk
0:00:05.6]} 67. Rf5 {[%clk 0:00:54.7]} 67... Rh8+ {[%clk 0:00:04.3]} 68. Kg4
{[%clk 0:00:54.8]} 68... Rg8+ {[%clk 0:00:05.9]} 69. Kh5 {[%clk 0:00:55.3]}
69... Rh8+ {[%clk 0:00:07.2]} 70. Kg5 {[%clk 0:00:54.8]} 70... Rg8+ {[%clk
0:00:08.1]} 71. Kh6 {[%clk 0:00:56]} 71... Rh8+ {[%clk 0:00:08.7]} 72. Kg6
{[%clk 0:00:56.2]} 72... Rg8+ {[%clk 0:00:09.7]} 73. Kf7 {[%clk 0:00:56.2]}
73... Rg3 {[%clk 0:00:10.2]} 74. Ke6 {[%clk 0:00:56.7]} 74... Rxf3 {[%clk
0:00:11.2]} 75. Rxf3+ {[%clk 0:00:58.6]} 75... Kxf3 {[%clk 0:00:13]} 1/2-1/2